fUSD/lending_fUSD_20251122
["ID","MTS","AMOUNT","RATE_DAILY","PERIOD"]
[394629148,1763795483545,-868.15,0.00017534,2]
[394629149,1763795483553,-500.0,0.00017534,2]
[394629150,1763795483563,-489.53053979,0.00017534,2]
[394629151,1763795483574,-500.0,0.00017534,2]
[394629152,1763795483584,-1394.24,0.00017534,2]
[394629153,1763795483594,-833.98,0.00017534,2]
[394629154,1763795483603,-1003.9,0.00017534,2]
[394629155,1763795483612,-968.93,0.00017534,2]
[394629156,1763795483621,-500.0,0.00017534,2]
[394629157,1763795483631,-500.0,0.00017534,2]
[394629158,1763795483640,-500.0,0.00017534,2]
[394629159,1763795483650,-536.53329369,0.00017534,2]
[394629160,1763795483659,-1270.78,0.00017534,2]
[394629161,1763795483668,-500.0,0.00017534,2]
[394629162,1763795483678,-591.78,0.00017534,2]
[394629163,1763795483688,-1323.25,0.00017534,2]
[394629164,1763795483697,-283.44086295,0.00017534,2]
[394629165,1763795483706,-500.0,0.00017534,2]
[394629166,1763795483720,-500.0,0.00017534,2]
[394629167,1763795483730,-500.0,0.00017534,2]
[394629168,1763795483740,-960.48,0.00017534,2]
[394629169,1763795483749,-500.0,0.00017534,2]
[394629170,1763795483759,-1270.58,0.00017534,2]
[394629171,1763795483768,-1756.44,0.00017534,2]
[394629172,1763795483778,-5897.28,0.00017534,2]
[394629173,1763795483788,-300.0,0.00017534,2]
[394629174,1763795483797,-500.0,0.00017534,2]
[394629175,1763795483808,-673.29,0.00017534,2]
[394629176,1763795483817,-642.99,0.00017534,2]
[394629177,1763795483826,-500.0,0.00017534,2]
[394629178,1763795483835,-793.06,0.00017534,2]
[394629179,1763795483845,-539.56,0.00017534,2]
[394629180,1763795483854,-500.0,0.00017534,2]
[394629181,1763795483864,-500.0,0.00017534,2]
[394629182,1763795483873,-500.0,0.00017534,2]
[394629183,1763795483882,-500.0,0.00017534,2]
[394629184,1763795483891,-500.0,0.00017534,2]
[394629185,1763795483901,-583.90594289,0.00017534,2]
[394629186,1763795483910,-1013.52,0.00017534,2]
[394629187,1763795483919,-500.0,0.00017534,2]
[394629188,1763795483929,-500.0,0.00017534,2]
[394629189,1763795483938,-500.0,0.00017534,2]
[394629190,1763795483948,-732.25,0.00017534,2]
[394629191,1763795483957,-500.0,0.00017534,2]
[394629192,1763795483967,-500.0,0.00017534,2]
[394629193,1763795483976,-3543.04,0.00017534,2]
[394629194,1763795483985,-500.0,0.00017534,2]
[394629195,1763795483994,-500.0,0.00017534,2]
[394629196,1763795484003,-500.0,0.00017534,2]
[394629197,1763795484013,-1235.15,0.00017534,2]
[394629198,1763795484022,-1277.22,0.00017534,2]
[394629199,1763795484032,-500.0,0.00017534,2]
[394629200,1763795484042,-500.0,0.00017534,2]
[394629201,1763795484051,-500.0,0.00017534,2]
[394629202,1763795484060,-500.0,0.00017534,2]
[394629203,1763795484070,-500.0,0.00017534,2]
[394629204,1763795484080,-500.0,0.00017534,2]
[394629205,1763795484090,-500.0,0.00017534,2]
[394629206,1763795484103,-1044.2,0.00017534,2]
[394629207,1763795484112,-740.95,0.00017534,2]
[394629208,1763795484122,-500.0,0.00017534,2]
[394629209,1763795484132,-500.0,0.00017534,2]
[394629210,1763795484143,-804.88,0.00017534,2]
[394629211,1763795484153,-500.0,0.00017534,2]
[394629212,1763795484163,-698.82,0.00017534,2]
[394629213,1763795484176,-726.81,0.00017534,2]
[394629214,1763795484187,-500.0,0.00017534,2]
[394629215,1763795484197,-500.0,0.00017534,2]
[394629216,1763795484206,-500.0,0.00017534,2]
[394629217,1763795484216,-500.0,0.00017534,2]
[394629218,1763795484226,-597.4,0.00017534,2]
[394629219,1763795484236,-501.91935123,0.00017534,2]
[394629220,1763795484246,-691.58,0.00017534,2]
[394629221,1763795484256,-564.65,0.00017534,2]
[394629222,1763795484269,-500.0,0.00017534,2]
[394629223,1763795484289,-500.0,0.00017534,2]
[394629224,1763795484302,-500.0,0.00017534,2]
[394629225,1763795484314,-500.0,0.00017534,2]
[394629226,1763795484325,-500.0,0.00017534,2]
[394629227,1763795484336,-655.79,0.00017534,2]
[394629228,1763795484347,-500.0,0.00017534,2]
[394629229,1763795484358,-782.5,0.00017534,2]
[394629230,1763795484368,-500.0,0.00017534,2]
[394629231,1763795484378,-647.09,0.00017534,2]
[394629232,1763795484388,-500.0,0.00017534,2]
[394629233,1763795484397,-904.27,0.00017534,2]
[394629234,1763795484407,-1622.6,0.00017534,2]
[394629235,1763795484417,-500.0,0.00017534,2]
[394629236,1763795484427,-500.0,0.00017534,2]
[394629237,1763795484438,-733.12,0.00017534,2]
[394629238,1763795484450,-787.46,0.00017534,2]
[394629239,1763795484460,-500.0,0.00017534,2]
[394629240,1763795484470,-3465.48,0.00017534,2]
[394629241,1763795484479,-500.0,0.00017534,2]
[394629242,1763795484491,-500.0,0.00017534,2]
[394629243,1763795484501,-500.0,0.00017534,2]
[394629244,1763795484512,-500.0,0.00017534,2]
[394629245,1763795484522,-500.0,0.00017534,2]
[394629246,1763795484532,-1361.43,0.00017534,2]
[394629247,1763795484541,-500.0,0.00017534,2]
[394629248,1763795484551,-517.54,0.00017534,2]
[394629249,1763795484561,-500.0,0.00017534,2]
[394629250,1763795484571,-500.0,0.00017534,2]
[394629251,1763795484581,-500.0,0.00017534,2]
[394629252,1763795484590,-500.0,0.00017534,2]
[394629253,1763795484600,-2776.22,0.00017534,2]
[394629254,1763795484610,-500.0,0.00017534,2]
[394629255,1763795484621,-953.39,0.00017534,2]
[394629256,1763795484631,-500.0,0.00017534,2]
[394629257,1763795484640,-679.39,0.00017534,2]
[394629258,1763795484649,-1700.59,0.00017534,2]
[394629259,1763795484660,-500.0,0.00017534,2]
[394629260,1763795484670,-500.0,0.00017534,2]
[394629261,1763795484680,-500.0,0.00017534,2]
[394629262,1763795484690,-1365.73,0.00017534,2]
[394629263,1763795484700,-1141.67,0.00017534,2]
[394629264,1763795484709,-1067.76,0.00017534,2]
[394629265,1763795484720,-500.0,0.00017534,2]
[394629266,1763795484730,-500.0,0.00017534,2]
[394629267,1763795484740,-500.0,0.00017534,2]
[394629268,1763795484750,-505.09,0.00017534,2]
[394629269,1763795484760,-351.25604479,0.00017534,2]
[394629270,1763795484769,-597.03,0.00017534,2]
[394629271,1763795484780,-500.0,0.00017534,2]
[394629272,1763795484790,-500.0,0.00017534,2]
[394629273,1763795484800,-1561.68,0.00017534,2]
[394629274,1763795484809,-2836.92,0.00017534,2]
[394629275,1763795484819,-500.0,0.00017534,2]
[394629276,1763795484828,-549.36,0.00017534,2]
[394629277,1763795484837,-500.0,0.00017534,2]
[394629278,1763795484847,-500.0,0.00017534,2]
[394629279,1763795484857,-500.0,0.00017534,2]
[394629280,1763795484867,-199.71588878,0.00017534,2]
[394629281,1763795484877,-173.00531251,0.00017534,2]
[394629282,1763795484887,-500.0,0.00017534,2]
[394629283,1763795484897,-500.0,0.00017534,2]
[394629284,1763795484907,-1018.18,0.00017534,2]
[394629285,1763795484917,-759.31,0.00017534,2]
[394629286,1763795484928,-1213.88,0.00017534,2]
[394629287,1763795484938,-2177.24,0.00017534,2]
[394629288,1763795484948,-910.36,0.00017534,2]
[394629289,1763795484958,-500.0,0.00017534,2]
[394629290,1763795484968,-500.0,0.00017534,2]
[394629291,1763795484978,-500.0,0.00017534,2]
[394629292,1763795484988,-606.158314,0.00017534,2]
[394629293,1763795484999,-500.0,0.00017534,2]
[394629294,1763795485009,-1090.15,0.00017534,2]
[394629295,1763795485018,-672.23,0.00017534,2]
[394629296,1763795485028,-1094.76,0.00017534,2]
[394629297,1763795485038,-500.0,0.00017534,2]
[394629298,1763795485047,-500.0,0.00017534,2]
[394629299,1763795485057,-872.6,0.00017534,2]
[394629300,1763795485066,-500.0,0.00017534,2]
[394629301,1763795485076,-500.0,0.00017534,2]
[394629302,1763795485086,-500.0,0.00017534,2]
[394629303,1763795485096,-500.0,0.00017534,2]
[394629304,1763795485110,-500.0,0.00017534,2]
[394629305,1763795485120,-500.0,0.00017534,2]
[394629306,1763795485131,-8935.96,0.00017534,2]
[394629307,1763795485140,-1399.76,0.00017534,2]
[394629308,1763795485150,-2311.26,0.00017534,2]
[394629309,1763795485159,-626.87,0.00017534,2]
[394629310,1763795485169,-500.0,0.00017534,2]
[394629311,1763795485179,-773.67,0.00017534,2]
[394629312,1763795485189,-902.42,0.00017534,2]
[394629313,1763795485199,-500.0,0.00017534,2]
[394629314,1763795485209,-500.0,0.00017534,2]
[394629315,1763795485219,-531.43,0.00017534,2]
[394629316,1763795485230,-530.38185094,0.00017534,2]
[394629317,1763795485240,-500.0,0.00017534,2]
[394629318,1763795485250,-2809.48,0.00017534,2]
[394629319,1763795485260,-500.0,0.00017534,2]
[394629320,1763795485270,-873.93,0.00017534,2]
[394629321,1763795485281,-819.4,0.00017534,2]
[394629322,1763795485292,-157.79111714,0.00017554,2]
[394629323,1763795485302,-520.0,0.00017554,2]
[394629324,1763795485312,-618.0,0.00017554,2]
[394629325,1763795485324,-500.0,0.00017554,2]
[394629326,1763795485334,-500.0,0.00017554,2]
[394629327,1763795485345,-726.0,0.00017554,2]
[394629328,1763795485354,-500.0,0.00017554,2]
[394629329,1763795485364,-500.0,0.00017554,2]
[394629330,1763795485374,-500.0,0.00017554,2]
[394629331,1763795485384,-500.0,0.00017554,2]
[394629332,1763795485394,-500.0,0.00017554,2]
[394629333,1763795485405,-484.0,0.00017554,2]
[394629334,1763795485415,-1260.60088821,0.00017558,2]
[394629335,1763795485425,-10024.71496974,0.00017558,2]
[394629336,1763795485435,-166.84462086,0.00017558,2]
[394629337,1763795485444,-300.0,0.00017564,2]
[394629338,1763795485455,-1500.0,0.00017568,2]
[394629339,1763795485464,-1500.0,0.00017568,2]
[394629340,1763795485475,-384.36283049,0.00017568,2]
[394629341,1763795485485,-413.45244426,0.0001758,2]
[394629342,1763795485495,-272.61142787,0.00017589,2]
[394629343,1763795485505,-500.0,0.00017589,2]
[394629344,1763795485515,-500.0,0.00017589,2]
[394629345,1763795485525,-500.0,0.00017589,2]
[394629346,1763795485537,-500.0,0.00017589,2]
[394629347,1763795485547,-1209.88,0.00017589,2]
[394629348,1763795485557,-5154.75,0.00017589,2]
[394629349,1763795485567,-500.0,0.00017589,2]
[394629350,1763795485576,-995.45,0.00017589,2]
[394629351,1763795485586,-666.13,0.00017589,2]
[394629352,1763795485595,-500.0,0.00017589,2]
[394629353,1763795485606,-1192.89,0.00017589,2]
[394629354,1763795485616,-661.37,0.00017589,2]
[394629355,1763795485626,-719.39,0.00017589,2]
[394629356,1763795485636,-500.0,0.00017589,2]
[394629357,1763795485646,-500.0,0.00017589,2]
[394629358,1763795485656,-868.51,0.00017589,2]
[394629359,1763795485666,-618.38,0.00017589,2]
[394629360,1763795485676,-500.0,0.00017589,2]
[394629361,1763795485686,-1206.92,0.00017589,2]
[394629362,1763795485696,-659.86,0.00017589,2]
[394629363,1763795485706,-500.0,0.00017589,2]
[394629364,1763795485716,-500.0,0.00017589,2]
[394629365,1763795485726,-500.0,0.00017589,2]
[394629366,1763795485735,-500.0,0.00017589,2]
[394629367,1763795485745,-793.08,0.00017589,2]
[394629368,1763795485755,-500.0,0.00017589,2]
[394629369,1763795485766,-500.0,0.00017589,2]
[394629370,1763795485776,-500.0,0.00017589,2]
[394629371,1763795485785,-500.0,0.00017589,2]
[394629372,1763795485795,-752.21,0.00017589,2]
[394629373,1763795485806,-724.34,0.00017589,2]
[394629374,1763795485816,-858.11,0.00017589,2]
[394629375,1763795485826,-642.54,0.00017589,2]
[394629376,1763795485836,-500.0,0.00017589,2]
[394629377,1763795485846,-500.0,0.00017589,2]
[394629378,1763795485856,-1351.88,0.00017589,2]
[394629379,1763795485866,-583.12,0.00017589,2]
[394629380,1763795485876,-500.0,0.00017589,2]
[394629381,1763795485886,-500.0,0.00017589,2]
[394629382,1763795485896,-500.0,0.00017589,2]
[394629383,1763795485906,-500.0,0.00017589,2]
[394629384,1763795485916,-636.97,0.00017589,2]
[394629385,1763795485926,-500.0,0.00017589,2]
[394629386,1763795485936,-1333.56,0.00017589,2]
[394629387,1763795485946,-1003.71,0.00017589,2]
[394629388,1763795485956,-500.0,0.00017589,2]
[394629389,1763795485966,-859.95,0.00017589,2]
[394629390,1763795485977,-639.99,0.00017589,2]
[394629391,1763795485987,-500.0,0.00017589,2]
[394629392,1763795485997,-219.59166468,0.00017589,2]
[394629393,1763795486007,-500.0,0.00017589,2]
[394629394,1763795486017,-1231.68,0.00017589,2]
[394629395,1763795486027,-500.0,0.00017589,2]
[394629396,1763795486037,-1105.87,0.00017589,2]
[394629397,1763795486047,-500.0,0.00017589,2]
[394629398,1763795486057,-500.0,0.00017589,2]
[394629399,1763795486066,-500.0,0.00017589,2]
[394629400,1763795486075,-533.25681634,0.00017589,2]
[394629401,1763795486085,-1271.87,0.00017589,2]
[394629402,1763795486095,-864.09,0.00017589,2]
[394629403,1763795486107,-500.0,0.00017589,2]
[394629404,1763795486117,-668.75,0.00017589,2]
[394629405,1763795486126,-500.0,0.00017589,2]
[394629406,1763795486136,-1128.26,0.00017589,2]
[394629407,1763795486146,-500.0,0.00017589,2]
[394629408,1763795486157,-500.0,0.00017589,2]
[394629409,1763795486166,-605.18065981,0.00017589,2]
[394629410,1763795486178,-500.0,0.00017589,2]
[394629411,1763795486188,-1020.48,0.00017589,2]
[394629412,1763795486198,-500.0,0.00017589,2]
[394629413,1763795486208,-500.0,0.0001759,2]
[394629414,1763795486218,-508.45766171,0.0001759,2]
[394629415,1763795486228,-500.0,0.0001759,2]
[394629416,1763795486238,-500.0,0.0001759,2]
[394629417,1763795486247,-500.0,0.0001759,2]
[394629418,1763795486257,-500.0,0.0001759,2]
[394629419,1763795486266,-1324.57,0.0001759,2]
[394629420,1763795486276,-694.0,0.0001759,2]
[394629421,1763795486285,-500.0,0.0001759,2]
[394629422,1763795486294,-500.0,0.0001759,2]
[394629423,1763795486304,-500.0,0.0001759,2]
[394629424,1763795486314,-500.0,0.0001759,2]
[394629425,1763795486324,-861.45,0.0001759,2]
[394629426,1763795486334,-778.01,0.0001759,2]
[394629427,1763795486344,-500.0,0.0001759,2]
[394629428,1763795486354,-500.0,0.0001759,2]
[394629429,1763795486364,-500.0,0.0001759,2]
[394629430,1763795486374,-500.0,0.0001759,2]
[394629431,1763795486384,-280.32763995,0.0001759,2]
[394629432,1763795486394,-855.53,0.0001759,2]
[394629433,1763795486404,-810.8,0.0001759,2]
[394629434,1763795486613,-535.7,0.0001759,2]
[394629435,1763795486647,-799.75,0.0001759,2]
[394629436,1763795486657,-500.0,0.0001759,2]
[394629437,1763795486666,-532.93,0.0001759,2]
[394629438,1763795486679,-500.0,0.0001759,2]
[394629439,1763795486689,-853.67,0.0001759,2]
[394629440,1763795486698,-500.0,0.0001759,2]
[394629441,1763795486707,-500.0,0.0001759,2]
[394629442,1763795486716,-500.0,0.0001759,2]
[394629443,1763795486727,-500.0,0.0001759,2]
[394629444,1763795486736,-500.0,0.0001759,2]
[394629445,1763795486746,-500.0,0.0001759,2]
[394629446,1763795486756,-500.0,0.0001759,2]
[394629447,1763795486766,-971.94,0.0001759,2]
[394629448,1763795486776,-500.0,0.0001759,2]
[394629449,1763795486786,-500.0,0.0001759,2]
[394629450,1763795486795,-821.53,0.0001759,2]
[394629451,1763795486806,-818.36,0.0001759,2]
[394629452,1763795486816,-1074.73,0.0001759,2]
[394629453,1763795486827,-500.0,0.0001759,2]
[394629454,1763795486837,-500.0,0.0001759,2]
[394629455,1763795486847,-1035.77,0.0001759,2]
[394629456,1763795486856,-1218.66,0.0001759,2]
[394629457,1763795486867,-500.0,0.0001759,2]
[394629458,1763795486878,-616.89,0.0001759,2]
[394629459,1763795486887,-500.0,0.0001759,2]
[394629460,1763795486897,-666.17,0.0001759,2]
[394629461,1763795486906,-1022.43,0.0001759,2]
[394629462,1763795486916,-271.64889475,0.0001759,2]
[394629463,1763795486925,-1113.68,0.0001759,2]
[394629464,1763795486935,-509.4439132,0.0001759,2]
[394629465,1763795486945,-500.0,0.0001759,2]
[394629466,1763795486954,-964.69,0.0001759,2]
[394629467,1763795486964,-500.0,0.0001759,2]
[394629468,1763795486973,-500.0,0.0001759,2]
[394629469,1763795486983,-500.0,0.0001759,2]
[394629470,1763795486992,-500.0,0.0001759,2]
[394629471,1763795487001,-500.0,0.0001759,2]
[394629472,1763795487011,-500.0,0.0001759,2]
[394629473,1763795487021,-892.46,0.0001759,2]
[394629474,1763795487031,-500.0,0.0001759,2]
[394629475,1763795487040,-500.0,0.0001759,2]
[394629476,1763795487050,-528.27,0.0001759,2]
[394629477,1763795487059,-877.96,0.0001759,2]
[394629478,1763795487069,-774.78,0.0001759,2]
[394629479,1763795487079,-500.0,0.0001759,2]
[394629480,1763795487089,-500.0,0.0001759,2]
[394629481,1763795487101,-500.0,0.0001759,2]
[394629482,1763795487110,-500.0,0.0001759,2]
[394629483,1763795487122,-500.0,0.0001759,2]
[394629484,1763795487131,-500.0,0.0001759,2]
[394629485,1763795487143,-490.59230456,0.0001759,2]
[394629486,1763795487152,-500.0,0.0001759,2]
[394629487,1763795487162,-500.0,0.0001759,2]
[394629488,1763795487172,-914.75,0.0001759,2]
[394629489,1763795487182,-500.0,0.0001759,2]
[394629490,1763795487192,-801.13,0.0001759,2]
[394629491,1763795487203,-500.0,0.0001759,2]
[394629492,1763795487212,-434.15078008,0.0001759,2]
[394629493,1763795487222,-500.0,0.0001759,2]
[394629494,1763795487231,-500.0,0.0001759,2]
[394629495,1763795487241,-500.0,0.0001759,2]
[394629496,1763795487251,-507.79,0.0001759,2]
[394629497,1763795487260,-1243.23,0.0001759,2]
[394629498,1763795487270,-500.0,0.0001759,2]
[394629499,1763795487280,-680.08,0.0001759,2]
[394629500,1763795487289,-500.0,0.0001759,2]
[394629501,1763795487299,-917.45,0.0001759,2]
[394629502,1763795487309,-500.0,0.0001759,2]
[394629503,1763795487318,-506.76223146,0.0001759,2]
[394629504,1763795487328,-932.46,0.0001759,2]
[394629505,1763795487338,-500.0,0.0001759,2]
[394629506,1763795487347,-500.0,0.0001759,2]
[394629507,1763795487357,-663.27,0.0001759,2]
[394629508,1763795487367,-500.0,0.0001759,2]
[394629509,1763795487376,-414.71178013,0.0001759,2]
[394629510,1763795487386,-625.88174935,0.0001759,2]
[394629511,1763795487396,-500.0,0.0001759,2]
[394629512,1763795487406,-500.0,0.0001759,2]
[394629513,1763795487415,-500.0,0.0001759,2]
[394629514,1763795487427,-826.19,0.0001759,2]
[394629515,1763795487437,-500.0,0.0001759,2]
[394629516,1763795487447,-897.85,0.0001759,2]
[394629517,1763795487456,-500.0,0.0001759,2]
[394629518,1763795487466,-500.0,0.0001759,2]
[394629519,1763795487475,-1469.01,0.0001759,2]
[394629520,1763795487485,-500.0,0.0001759,2]
[394629521,1763795487495,-844.01,0.0001759,2]
[394629522,1763795487504,-290.08,0.0001759,2]
[394629523,1763795487514,-500.0,0.0001759,2]
[394629524,1763795487523,-500.0,0.0001759,2]
[394629525,1763795487532,-1024.25,0.0001759,2]
[394629526,1763795487542,-500.0,0.0001759,2]
[394629527,1763795487552,-500.0,0.0001759,2]
[394629528,1763795487561,-500.0,0.0001759,2]
[394629529,1763795487571,-500.0,0.0001759,2]
[394629530,1763795487580,-524.44,0.0001759,2]
[394629531,1763795487591,-500.0,0.0001759,2]
[394629532,1763795487600,-820.43,0.0001759,2]
[394629533,1763795487610,-500.0,0.0001759,2]
[394629534,1763795487619,-541.59,0.0001759,2]
[394629535,1763795487629,-1080.81,0.0001759,2]
[394629536,1763795487639,-500.0,0.0001759,2]
[394629537,1763795487648,-500.0,0.0001759,2]
[394629538,1763795487658,-1126.7,0.0001759,2]
[394629539,1763795487667,-500.0,0.0001759,2]
[394629540,1763795487677,-662.45,0.0001759,2]
[394629541,1763795487687,-755.62,0.0001759,2]
[394629542,1763795487696,-500.0,0.0001759,2]
[394629543,1763795487706,-212.44500615,0.0001759,2]
[394629544,1763795487716,-716.72,0.0001759,2]
[394629545,1763795487726,-948.49,0.0001759,2]
[394629546,1763795487736,-641.33,0.0001759,2]
[394629547,1763795487746,-500.0,0.0001759,2]
[394629548,1763795487755,-500.0,0.0001759,2]
[394629549,1763795487764,-827.46,0.0001759,2]
[394629550,1763795487774,-500.0,0.0001759,2]
[394629551,1763795487784,-500.0,0.0001759,2]
[394629552,1763795487794,-500.0,0.0001759,2]
[394629553,1763795487803,-500.0,0.0001759,2]
[394629554,1763795487812,-500.0,0.0001759,2]
[394629555,1763795487822,-500.0,0.0001759,2]
[394629556,1763795487832,-500.0,0.0001759,2]
[394629557,1763795487842,-1100.16,0.0001759,2]
[394629558,1763795487851,-500.0,0.0001759,2]
[394629559,1763795487861,-500.0,0.0001759,2]
[394629560,1763795487871,-578.37,0.0001759,2]
[394629561,1763795487880,-507.11,0.0001759,2]
[394629562,1763795487889,-722.23,0.0001759,2]
[394629563,1763795487899,-1162.4,0.0001759,2]
[394629564,1763795487908,-776.72,0.0001759,2]
[394629565,1763795487918,-500.0,0.0001759,2]
[394629566,1763795487927,-1201.47,0.0001759,2]
[394629567,1763795487937,-500.0,0.0001759,2]
[394629568,1763795487946,-500.0,0.0001759,2]
[394629569,1763795487955,-500.0,0.0001759,2]
[394629570,1763795487964,-558.88,0.0001759,2]
[394629571,1763795487974,-1990.9,0.0001759,2]
[394629572,1763795487983,-923.81,0.0001759,2]
[394629573,1763795487993,-893.8,0.0001759,2]
[394629574,1763795488002,-500.0,0.0001759,2]
[394629575,1763795488011,-500.0,0.0001759,2]
[394629576,1763795488021,-1021.95,0.0001759,2]
[394629577,1763795488032,-557.8,0.0001759,2]
[394629578,1763795488041,-1011.18,0.0001759,2]
[394629579,1763795488050,-500.0,0.0001759,2]
[394629580,1763795488058,-683.82,0.0001759,2]
[394629581,1763795488067,-500.0,0.0001759,2]
[394629582,1763795488076,-1050.83,0.0001759,2]
[394629583,1763795488085,-500.0,0.0001759,2]
[394629584,1763795488094,-635.13,0.0001759,2]
[394629585,1763795488107,-500.0,0.0001759,2]
[394629586,1763795488116,-529.46,0.0001759,2]
[394629587,1763795488126,-500.0,0.0001759,2]
[394629588,1763795488135,-1016.32,0.0001759,2]
[394629589,1763795488147,-502.96,0.0001759,2]
[394629590,1763795488156,-500.0,0.0001759,2]
[394629591,1763795488164,-542.19,0.0001759,2]
[394629592,1763795488176,-1206.81,0.0001759,2]
[394629593,1763795488185,-961.0,0.0001759,2]
[394629594,1763795488194,-500.0,0.0001759,2]
[394629595,1763795488203,-1134.04,0.0001759,2]
[394629596,1763795488212,-625.8,0.0001759,2]
[394629597,1763795488221,-1296.91,0.0001759,2]
[394629598,1763795488230,-622.87,0.0001759,2]
[394629599,1763795488240,-1505.41,0.0001759,2]
[394629600,1763795488249,-500.0,0.0001759,2]
[394629601,1763795488258,-500.0,0.0001759,2]
[394629602,1763795488267,-500.0,0.0001759,2]
[394629603,1763795488276,-500.0,0.0001759,2]
[394629604,1763795488285,-871.39,0.0001759,2]
[394629605,1763795488294,-500.0,0.0001759,2]
[394629606,1763795488303,-500.0,0.0001759,2]
[394629607,1763795488313,-500.0,0.0001759,2]
[394629608,1763795488321,-1422.18,0.0001759,2]
[394629609,1763795488331,-275.85870455,0.00017635,2]
[394629610,1763795488341,-1931.33294916,0.0001764,2]
[394629611,1763795488350,-218.71,0.00017678,2]
[394629612,1763795488359,-500.0,0.00017689,2]
[394629613,1763795488368,-500.0,0.0001769,2]
[394629614,1763795488378,-520.0,0.00017691,2]
[394629615,1763795488388,-618.0,0.00017691,2]
[394629616,1763795488397,-417.21606627,0.00017691,2]
[394629617,1763795488407,-500.0,0.00017691,2]
[394629618,1763795488418,-726.0,0.00017691,2]
[394629619,1763795488427,-500.0,0.00017691,2]
[394629620,1763795488437,-191.46661754,0.00017691,2]
[394629621,1763795488446,-500.0,0.00017691,2]
[394629622,1763795488456,-500.0,0.00017691,2]
[394629623,1763795488466,-500.0,0.00017691,2]
[394629624,1763795488476,-484.0,0.00017691,2]
[394629625,1763795488486,-300.21,0.00017691,2]
[394629626,1763795488495,-500.0,0.00017691,2]
[394629627,1763795488504,-563.26,0.00017691,2]
[394629628,1763795488514,-500.0,0.00017691,2]
[394629629,1763795488523,-500.0,0.00017691,2]
[394629630,1763795488532,-773.87,0.00017691,2]
[394629631,1763795488543,-500.0,0.00017691,2]
[394629632,1763795488553,-500.0,0.00017691,2]
[394629633,1763795488563,-506.94,0.00017691,2]
[394629634,1763795488573,-828.42,0.00017691,2]
[394629635,1763795488583,-500.0,0.00017691,2]
[394629636,1763795488594,-500.0,0.00017691,2]
[394629637,1763795488603,-677.92,0.00017691,2]
[394629638,1763795488614,-999.38,0.00017691,2]
[394629639,1763795488624,-783.04,0.00017691,2]
[394629640,1763795488634,-977.89,0.00017691,2]
[394629641,1763795488643,-554.46,0.00017691,2]
[394629642,1763795488653,-195.50218192,0.00017691,2]
[394629643,1763795488662,-500.0,0.00017691,2]
[394629644,1763795488671,-500.0,0.00017691,2]
[394629645,1763795488681,-500.0,0.00017691,2]
[394629646,1763795488690,-500.0,0.00017691,2]
[394629647,1763795488699,-294.61734934,0.00017731,2]